[Event "Late-Titled-Tuesday-Blitz-September-19-2023"]
[Site "Chess.com"]
[Date "2023.09.19"]
[Round "9"]
[White "MBA_CHESS_2021"]
[Black "kleopl"]
[Result "0-1"]
[WhiteElo "2189"]
[BlackElo "2464"]
[TimeControl "180+1"]
[EndTime "15:45:21 PDT"]
[Termination "kleopl won by checkmate"]

1. d4 {[%clk 0:03:00.9]} 1... Nf6 {[%clk 0:02:59.1]} 2. c4 {[%clk 0:02:59.4]}
2... e6 {[%clk 0:02:59.2]} 3. Nc3 {[%clk 0:02:59]} 3... Bb4 {[%clk 0:02:58.5]}
4. e3 {[%clk 0:02:58.5]} 4... c5 {[%clk 0:02:55.7]} 5. Bd3 {[%clk 0:02:57.9]}
5... cxd4 {[%clk 0:02:55.3]} 6. exd4 {[%clk 0:02:57.6]} 6... d5 {[%clk
0:02:53.6]} 7. Ne2 {[%clk 0:02:55]} 7... Nc6 {[%clk 0:02:52.1]} 8. O-O {[%clk
0:02:52]} 8... O-O {[%clk 0:02:51.8]} 9. Bg5 {[%clk 0:02:39.4]} 9... dxc4 {[%clk
0:02:45]} 10. Bxc4 {[%clk 0:02:38.9]} 10... Be7 {[%clk 0:02:45.6]} 11. Rc1
{[%clk 0:02:32.3]} 11... Nb4 {[%clk 0:02:35.6]} 12. a3 {[%clk 0:02:20.9]} 12...
Nbd5 {[%clk 0:02:35.3]} 13. Bd3 {[%clk 0:02:18.4]} 13... b6 {[%clk 0:02:28.4]}
14. Nxd5 {[%clk 0:02:05.5]} 14... Nxd5 {[%clk 0:02:27.4]} 15. Bxe7 {[%clk
0:02:05.2]} 15... Qxe7 {[%clk 0:02:25.3]} 16. Nc3 {[%clk 0:02:01.6]} 16... Bb7
{[%clk 0:02:20.5]} 17. Qh5 {[%clk 0:01:48.9]} 17... g6 {[%clk 0:02:20.1]} 18.
Qh6 {[%clk 0:01:42.4]} 18... Qf6 {[%clk 0:02:12.4]} 19. Rfd1 {[%clk 0:01:33.2]}
19... Nf4 {[%clk 0:01:56.6]} 20. Be4 {[%clk 0:01:27.4]} 20... Ne2+ {[%clk
0:01:41.7]} 21. Nxe2 {[%clk 0:01:24.5]} 21... Bxe4 {[%clk 0:01:41.1]} 22. Ng3
{[%clk 0:01:22.1]} 22... Bd5 {[%clk 0:01:38.2]} 23. Nh5 {[%clk 0:01:04.1]} 23...
Qh8 {[%clk 0:01:38]} 24. Nf4 {[%clk 0:01:01.9]} 24... Rfd8 {[%clk 0:01:33.7]}
25. Rc7 {[%clk 0:00:56.5]} 25... a5 {[%clk 0:01:20.2]} 26. Rd3 {[%clk
0:00:33.8]} 26... Rac8 {[%clk 0:01:16.2]} 27. Nxd5 {[%clk 0:00:26.6]} 27... exd5
{[%clk 0:01:12.8]} 28. Qf4 {[%clk 0:00:26.3]} 28... Qg7 {[%clk 0:01:10.1]} 29.
h4 {[%clk 0:00:24.1]} 29... Re8 {[%clk 0:01:02.6]} 30. Rdc3 {[%clk 0:00:22.7]}
30... Rxc7 {[%clk 0:01:01.2]} 31. Rxc7 {[%clk 0:00:21.4]} 31... h5 {[%clk
0:01:01.4]} 32. Kh2 {[%clk 0:00:18.4]} 32... Re6 {[%clk 0:00:56.3]} 33. f3
{[%clk 0:00:17.5]} 33... Re8 {[%clk 0:00:42]} 34. Rd7 {[%clk 0:00:16.6]} 34...
Re2 {[%clk 0:00:34.8]} 35. Rxd5 {[%clk 0:00:16.2]} 35... Rxb2 {[%clk 0:00:34.4]}
36. Rd8+ {[%clk 0:00:16]} 36... Kh7 {[%clk 0:00:34.7]} 37. Rd7 {[%clk
0:00:15.9]} 37... Kg8 {[%clk 0:00:35]} 38. Rd8+ {[%clk 0:00:10.8]} 38... Kh7
{[%clk 0:00:35]} 39. Rd7 {[%clk 0:00:09.2]} 39... Kg8 {[%clk 0:00:34.2]} 40.
Qb8+ {[%clk 0:00:06]} 40... Kh7 {[%clk 0:00:33]} 41. Qc7 {[%clk 0:00:06.3]}
41... Kg8 {[%clk 0:00:24.8]} 42. Qd8+ {[%clk 0:00:05.6]} 42... Qf8 {[%clk
0:00:23.2]} 43. Qf6 {[%clk 0:00:05.3]} 43... Qg7 {[%clk 0:00:20.5]} 44. Rd8+
{[%clk 0:00:05.1]} 44... Kh7 {[%clk 0:00:20.8]} 45. Qd6 {[%clk 0:00:04.4]} 45...
Rd2 {[%clk 0:00:20.1]} 46. Rd7 {[%clk 0:00:04.2]} 46... Kg8 {[%clk 0:00:18.6]}
47. Qf4 {[%clk 0:00:03.8]} 47... Rd3 {[%clk 0:00:17.3]} 48. Qb8+ {[%clk
0:00:03.6]} 48... Kh7 {[%clk 0:00:17.3]} 49. Qxb6 {[%clk 0:00:04.3]} 49... Rxa3
{[%clk 0:00:16.6]} 50. Qc7 {[%clk 0:00:04.1]} 50... Kg8 {[%clk 0:00:15.5]} 51.
Qd8+ {[%clk 0:00:03.8]} 51... Kh7 {[%clk 0:00:15.7]} 52. Qe7 {[%clk 0:00:04.4]}
52... Rd3 {[%clk 0:00:14.8]} 53. Qxf7 {[%clk 0:00:04.3]} 53... Qxf7 {[%clk
0:00:15.2]} 54. Rxf7+ {[%clk 0:00:04.8]} 54... Kg8 {[%clk 0:00:15.7]} 55. Ra7
{[%clk 0:00:05.5]} 55... Rxd4 {[%clk 0:00:15.7]} 56. Rxa5 {[%clk 0:00:06.2]}
56... Rxh4+ {[%clk 0:00:16]} 57. Kg3 {[%clk 0:00:05.6]} 57... Rb4 {[%clk
0:00:16.6]} 58. Ra6 {[%clk 0:00:06.1]} 58... Kg7 {[%clk 0:00:16.9]} 59. Rc6
{[%clk 0:00:05.9]} 59... Kh6 {[%clk 0:00:16.8]} 60. Rd6 {[%clk 0:00:06.8]} 60...
Kg5 {[%clk 0:00:17]} 61. Rc6 {[%clk 0:00:07.7]} 61... h4+ {[%clk 0:00:17.2]} 62.
Kh3 {[%clk 0:00:07.4]} 62... Kh5 {[%clk 0:00:17.7]} 63. Rc5+ {[%clk 0:00:07.7]}
63... g5 {[%clk 0:00:17.4]} 64. Rf5 {[%clk 0:00:08.2]} 64... Rb1 {[%clk
0:00:17.6]} 65. f4 {[%clk 0:00:08.1]} 65... Rh1# {[%clk 0:00:17.6]} 0-1

[Event "Late-Titled-Tuesday-Blitz-September-19-2023"]
[Site "Chess.com"]
[Date "2023.09.19"]
[Round "9"]
[White "artin10862"]
[Black "Jospem"]
[Result "0-1"]
[WhiteElo "2924"]
[BlackElo "3073"]
[TimeControl "180+1"]
[EndTime "15:45:34 PDT"]
[Termination "Jospem won on time"]

1. d4 {[%clk 0:02:58.3]} 1... Nf6 {[%clk 0:02:58.4]} 2. c4 {[%clk 0:02:56.2]}
2... e6 {[%clk 0:02:59.1]} 3. Nf3 {[%clk 0:02:54.7]} 3... Bb4+ {[%clk
0:02:59.3]} 4. Bd2 {[%clk 0:02:51.3]} 4... c5 {[%clk 0:02:58.9]} 5. Bxb4 {[%clk
0:02:47]} 5... cxb4 {[%clk 0:02:59.8]} 6. e3 {[%clk 0:02:47.3]} 6... b6 {[%clk
0:03:00.1]} 7. a3 {[%clk 0:02:47.4]} 7... bxa3 {[%clk 0:02:59.4]} 8. Rxa3 {[%clk
0:02:47.4]} 8... a5 {[%clk 0:02:59.9]} 9. b4 {[%clk 0:02:34.5]} 9... Nc6 {[%clk
0:02:59.7]} 10. bxa5 {[%clk 0:02:32.1]} 10... bxa5 {[%clk 0:02:48.8]} 11. Be2
{[%clk 0:02:26.4]} 11... O-O {[%clk 0:02:48.9]} 12. O-O {[%clk 0:02:26.1]} 12...
Qe7 {[%clk 0:02:48.4]} 13. c5 {[%clk 0:02:24.5]} 13... d6 {[%clk 0:02:45.8]} 14.
cxd6 {[%clk 0:02:24.2]} 14... Qxd6 {[%clk 0:02:46.7]} 15. Nfd2 {[%clk
0:02:09.5]} 15... Nd5 {[%clk 0:02:17.5]} 16. Nc4 {[%clk 0:02:02.6]} 16... Qe7
{[%clk 0:02:17.7]} 17. Nc3 {[%clk 0:01:48.5]} 17... Ba6 {[%clk 0:02:17.5]} 18.
Qa1 {[%clk 0:01:48.5]} 18... Bxc4 {[%clk 0:02:13]} 19. Bxc4 {[%clk 0:01:47.6]}
19... Ndb4 {[%clk 0:02:13.8]} 20. Rc1 {[%clk 0:01:42.8]} 20... Rfc8 {[%clk
0:02:13.5]} 21. Ne4 {[%clk 0:01:41.3]} 21... Rcb8 {[%clk 0:01:51.7]} 22. Bf1
{[%clk 0:01:34]} 22... h6 {[%clk 0:01:49.5]} 23. g3 {[%clk 0:01:31.2]} 23... Rb6
{[%clk 0:01:49.4]} 24. Nc5 {[%clk 0:01:22.1]} 24... Ra7 {[%clk 0:01:48.8]} 25.
Bg2 {[%clk 0:01:20.2]} 25... Qd6 {[%clk 0:01:43.1]} 26. Rac3 {[%clk 0:01:12.7]}
26... Ne7 {[%clk 0:01:35.6]} 27. Qa4 {[%clk 0:01:09]} 27... Rb8 {[%clk
0:01:32.2]} 28. Nb3 {[%clk 0:00:56.4]} 28... Nbd5 {[%clk 0:01:23.9]} 29. Rc5
{[%clk 0:00:55.1]} 29... Qb6 {[%clk 0:01:16.7]} 30. Nxa5 {[%clk 0:00:37.1]}
30... Rba8 {[%clk 0:01:07.8]} 31. Ra1 {[%clk 0:00:34.8]} 31... f5 {[%clk
0:00:44.6]} 32. Rb5 {[%clk 0:00:19]} 32... Qc7 {[%clk 0:00:38.1]} 33. Rc5 {[%clk
0:00:19.3]} 33... Qb6 {[%clk 0:00:38.6]} 34. Rb5 {[%clk 0:00:19.1]} 34... Qd8
{[%clk 0:00:33.3]} 35. Rc5 {[%clk 0:00:12.6]} 35... Kh7 {[%clk 0:00:32.5]} 36.
Qa3 {[%clk 0:00:10.6]} 36... Ra6 {[%clk 0:00:25.7]} 37. Bf1 {[%clk 0:00:10.6]}
37... R6a7 {[%clk 0:00:23.1]} 38. Bg2 {[%clk 0:00:10.1]} 38... Kg6 {[%clk
0:00:12.1]} 39. Qa4 {[%clk 0:00:07.1]} 39... Ra6 {[%clk 0:00:10.5]} 40. Bf1
{[%clk 0:00:06.7]} 40... R6a7 {[%clk 0:00:11]} 41. Qb5 {[%clk 0:00:06.8]} 41...
h5 {[%clk 0:00:08.7]} 42. h4 {[%clk 0:00:05.4]} 42... Kh6 {[%clk 0:00:08.5]} 43.
Ra4 {[%clk 0:00:05.4]} 43... Qf8 {[%clk 0:00:05.3]} 44. Ra2 {[%clk 0:00:03.1]}
44... Qf6 {[%clk 0:00:05.7]} 45. Qc4 {[%clk 0:00:02.2]} 45... g5 {[%clk
0:00:05.9]} 46. hxg5+ {[%clk 0:00:02.2]} 46... Qxg5 {[%clk 0:00:06.8]} 47. Bg2
{[%clk 0:00:02.8]} 47... h4 {[%clk 0:00:07.1]} 48. gxh4 {[%clk 0:00:02.9]} 48...
Qg4 {[%clk 0:00:06.9]} 49. f3 {[%clk 0:00:02.3]} 49... Qg3 {[%clk 0:00:06.5]}
50. Qe2 {[%clk 0:00:02.4]} 50... Qxh4 {[%clk 0:00:05.8]} 51. Qf2 {[%clk
0:00:02.8]} 51... Qg5 {[%clk 0:00:06.5]} 52. f4 {[%clk 0:00:03]} 52... Qg4
{[%clk 0:00:07.2]} 53. Qf3 {[%clk 0:00:02.5]} 53... Qg6 {[%clk 0:00:07.9]} 54.
Qh3+ {[%clk 0:00:03]} 54... Kg7 {[%clk 0:00:08.6]} 55. Kf2 {[%clk 0:00:03.6]}
55... Nf6 {[%clk 0:00:05.1]} 56. Bxa8 {[%clk 0:00:03]} 56... Rxa8 {[%clk
0:00:06]} 57. Qg3 {[%clk 0:00:03.4]} 57... Ne4+ {[%clk 0:00:06.2]} 0-1

[Event "Late-Titled-Tuesday-Blitz-September-19-2023"]
[Site "Chess.com"]
[Date "2023.09.19"]
[Round "9"]
[White "hellokostya"]
[Black "slorovel"]
[Result "1-0"]
[WhiteElo "2614"]
[BlackElo "2510"]
[TimeControl "180+1"]
[EndTime "15:45:40 PDT"]
[Termination "hellokostya won by checkmate"]

1. Nf3 {[%clk 0:03:00.9]} 1... g6 {[%clk 0:02:55.1]} 2. e4 {[%clk 0:02:59.7]}
2... c5 {[%clk 0:02:54.6]} 3. d4 {[%clk 0:02:57]} 3... cxd4 {[%clk 0:02:54.6]}
4. Nxd4 {[%clk 0:02:57.9]} 4... Nc6 {[%clk 0:02:52.4]} 5. c4 {[%clk 0:02:56.6]}
5... Bg7 {[%clk 0:02:52.2]} 6. Be3 {[%clk 0:02:54]} 6... Nf6 {[%clk 0:02:52.4]}
7. Nc3 {[%clk 0:02:53.6]} 7... Ng4 {[%clk 0:02:50.3]} 8. Qxg4 {[%clk 0:02:52.6]}
8... Nxd4 {[%clk 0:02:50]} 9. Qd1 {[%clk 0:02:53.3]} 9... e5 {[%clk 0:02:48.3]}
10. Bd3 {[%clk 0:02:52.1]} 10... O-O {[%clk 0:02:47.5]} 11. O-O {[%clk
0:02:51.7]} 11... d6 {[%clk 0:02:46.2]} 12. Nb5 {[%clk 0:02:48.9]} 12... a6
{[%clk 0:02:40.6]} 13. Nxd4 {[%clk 0:02:44.4]} 13... exd4 {[%clk 0:02:41.5]} 14.
Bd2 {[%clk 0:02:42.5]} 14... Be6 {[%clk 0:02:41.1]} 15. f4 {[%clk 0:02:41.1]}
15... Rc8 {[%clk 0:02:35.4]} 16. b3 {[%clk 0:02:40.4]} 16... b5 {[%clk
0:02:33.5]} 17. cxb5 {[%clk 0:02:34.6]} 17... axb5 {[%clk 0:02:34.4]} 18. f5
{[%clk 0:02:27.1]} 18... Bd7 {[%clk 0:02:24.6]} 19. Qf3 {[%clk 0:02:24]} 19...
Re8 {[%clk 0:02:12.4]} 20. f6 {[%clk 0:01:56.8]} 20... Bf8 {[%clk 0:02:11.9]}
21. h4 {[%clk 0:01:46.8]} 21... h5 {[%clk 0:02:09.8]} 22. Bg5 {[%clk 0:01:45.7]}
22... Bg4 {[%clk 0:02:08.9]} 23. Qf4 {[%clk 0:01:43.3]} 23... Rc3 {[%clk
0:02:07.5]} 24. Bh6 {[%clk 0:01:29.7]} 24... Re6 {[%clk 0:02:05.1]} 25. Bxf8
{[%clk 0:01:26.2]} 25... Qxf8 {[%clk 0:02:04.8]} 26. Bxb5 {[%clk 0:01:25.2]}
26... Re3 {[%clk 0:01:59.2]} 27. Bc6 {[%clk 0:01:20.3]} 27... Re2 {[%clk
0:01:49.1]} 28. Bd5 {[%clk 0:01:19.6]} 28... Re5 {[%clk 0:01:45.1]} 29. Rf2
{[%clk 0:01:08.9]} 29... d3 {[%clk 0:01:44]} 30. Rxe2 {[%clk 0:01:01]} 30...
dxe2 {[%clk 0:01:44.1]} 31. Kf2 {[%clk 0:01:01.7]} 31... Qc8 {[%clk 0:01:35.2]}
32. Rc1 {[%clk 0:00:54.4]} 32... Qd8 {[%clk 0:01:30.8]} 33. b4 {[%clk
0:00:47.3]} 33... Qb6+ {[%clk 0:01:27.6]} 34. Qe3 {[%clk 0:00:36.3]} 34... Qd8
{[%clk 0:01:12.1]} 35. Qf4 {[%clk 0:00:30.2]} 35... Qb6+ {[%clk 0:01:07.1]} 36.
Kg3 {[%clk 0:00:30.5]} 36... Qxb4 {[%clk 0:01:03.6]} 37. Bxf7+ {[%clk
0:00:17.9]} 37... Kh7 {[%clk 0:01:00.6]} 38. Bg8+ {[%clk 0:00:04.7]} 38... Kxg8
{[%clk 0:00:53.1]} 39. f7+ {[%clk 0:00:05.3]} 39... Kh7 {[%clk 0:00:49.5]} 40.
f8=Q {[%clk 0:00:04.7]} 40... e1=Q+ {[%clk 0:00:48.8]} 41. Rxe1 {[%clk
0:00:05.1]} 41... Qxe1+ {[%clk 0:00:48.8]} 42. Qf2 {[%clk 0:00:05.9]} 42...
Qxf2+ {[%clk 0:00:41.8]} 43. Qxf2 {[%clk 0:00:06.8]} 43... Rxe4 {[%clk
0:00:29.7]} 44. Qf7+ {[%clk 0:00:07.1]} 44... Kh6 {[%clk 0:00:29.6]} 45. Qf8+
{[%clk 0:00:06.7]} 45... Kh7 {[%clk 0:00:29.9]} 46. Qxd6 {[%clk 0:00:07]} 46...
Bf5 {[%clk 0:00:29.7]} 47. Qc7+ {[%clk 0:00:06.8]} 47... Kh6 {[%clk 0:00:29.5]}
48. Qd8 {[%clk 0:00:05.8]} 48... Kh7 {[%clk 0:00:24.3]} 49. Kh2 {[%clk
0:00:06.2]} 49... Ra4 {[%clk 0:00:19.7]} 50. Qe7+ {[%clk 0:00:05.4]} 50... Kh6
{[%clk 0:00:19.5]} 51. Qf8+ {[%clk 0:00:05.6]} 51... Kh7 {[%clk 0:00:20]} 52.
Qf7+ {[%clk 0:00:05.7]} 52... Kh6 {[%clk 0:00:20.4]} 53. Qg8 {[%clk 0:00:05.3]}
53... Rxh4+ {[%clk 0:00:16.8]} 54. Kg1 {[%clk 0:00:05.8]} 54... Kg5 {[%clk
0:00:16.1]} 55. Qd8+ {[%clk 0:00:05]} 55... Kg4 {[%clk 0:00:15.4]} 56. a4 {[%clk
0:00:05.1]} 56... g5 {[%clk 0:00:13.4]} 57. a5 {[%clk 0:00:04.6]} 57... Kg3
{[%clk 0:00:13.6]} 58. Qd6+ {[%clk 0:00:03.9]} 58... Rf4 {[%clk 0:00:13.1]} 59.
a6 {[%clk 0:00:03.9]} 59... Kg4 {[%clk 0:00:04.9]} 60. Qd1+ {[%clk 0:00:04.1]}
60... Kh4 {[%clk 0:00:04.6]} 61. Qe1+ {[%clk 0:00:04.2]} 61... Kg4 {[%clk
0:00:04.4]} 62. Qe2+ {[%clk 0:00:04.4]} 62... Kh4 {[%clk 0:00:04.7]} 63. a7
{[%clk 0:00:04.4]} 63... Ra4 {[%clk 0:00:04.4]} 64. Qe1+ {[%clk 0:00:04.3]}
64... Kg4 {[%clk 0:00:04]} 65. Qd1+ {[%clk 0:00:04.9]} 65... Kg3 {[%clk
0:00:04.6]} 66. Qxa4 {[%clk 0:00:05.2]} 66... h4 {[%clk 0:00:05.3]} 67. Qa3+
{[%clk 0:00:05.6]} 67... Kg4 {[%clk 0:00:05.5]} 68. a8=Q {[%clk 0:00:06.2]}
68... h3 {[%clk 0:00:06.2]} 69. Q8f3+ {[%clk 0:00:05.9]} 69... Kh4 {[%clk
0:00:05.9]} 70. Qxh3+ {[%clk 0:00:06.8]} 70... Bxh3 {[%clk 0:00:05.7]} 71. Qxh3#
{[%clk 0:00:07.6]} 1-0

[Event "Late-Titled-Tuesday-Blitz-September-19-2023"]
[Site "Chess.com"]
[Date "2023.09.19"]
[Round "9"]
[White "BillieKimbah"]
[Black "SpeedofLight0"]
[Result "1-0"]
[WhiteElo "2985"]
[BlackElo "3080"]
[TimeControl "180+1"]
[EndTime "15:45:41 PDT"]
[Termination "BillieKimbah won by checkmate"]

1. Nf3 {[%clk 0:02:49.3]} 1... c5 {[%clk 0:02:59]} 2. c4 {[%clk 0:02:48.3]} 2...
Nc6 {[%clk 0:02:57.8]} 3. Nc3 {[%clk 0:02:47.8]} 3... Nf6 {[%clk 0:02:57.4]} 4.
d4 {[%clk 0:02:45]} 4... cxd4 {[%clk 0:02:57.4]} 5. Nxd4 {[%clk 0:02:45.9]} 5...
e6 {[%clk 0:02:58]} 6. g3 {[%clk 0:02:45.7]} 6... Qb6 {[%clk 0:02:57.7]} 7. Nb3
{[%clk 0:02:39.6]} 7... Bb4 {[%clk 0:02:54.7]} 8. Bg2 {[%clk 0:02:37.2]} 8...
Ne5 {[%clk 0:02:49.6]} 9. c5 {[%clk 0:02:32.2]} 9... Bxc5 {[%clk 0:02:32.9]} 10.
Nxc5 {[%clk 0:02:31.1]} 10... Qxc5 {[%clk 0:02:33.8]} 11. O-O {[%clk 0:02:31.1]}
11... O-O {[%clk 0:02:31]} 12. Bf4 {[%clk 0:02:26.5]} 12... d6 {[%clk
0:02:16.7]} 13. Rc1 {[%clk 0:02:25.8]} 13... Qb6 {[%clk 0:02:12.4]} 14. Qb3
{[%clk 0:02:18.4]} 14... Qxb3 {[%clk 0:02:04]} 15. axb3 {[%clk 0:02:19.3]} 15...
Bd7 {[%clk 0:01:46.7]} 16. Rfd1 {[%clk 0:02:15.1]} 16... Bc6 {[%clk 0:01:42.5]}
17. Rxd6 {[%clk 0:02:07.6]} 17... Bxg2 {[%clk 0:01:41.8]} 18. Kxg2 {[%clk
0:01:52.9]} 18... Nc6 {[%clk 0:01:37.6]} 19. Bg5 {[%clk 0:01:35.6]} 19... Rfd8
{[%clk 0:01:31.2]} 20. Rxd8+ {[%clk 0:01:34.7]} 20... Rxd8 {[%clk 0:01:32.1]}
21. Ne4 {[%clk 0:01:32.4]} 21... Rd4 {[%clk 0:01:17.4]} 22. Nxf6+ {[%clk
0:01:29.7]} 22... gxf6 {[%clk 0:01:17.4]} 23. Bxf6 {[%clk 0:01:30.6]} 23... Rb4
{[%clk 0:01:16.2]} 24. Rc3 {[%clk 0:01:21.7]} 24... h6 {[%clk 0:01:15.4]} 25.
Rd3 {[%clk 0:01:19]} 25... Kh7 {[%clk 0:00:59.2]} 26. h4 {[%clk 0:00:48.1]}
26... Kg6 {[%clk 0:00:58]} 27. Bh8 {[%clk 0:00:48]} 27... h5 {[%clk 0:00:50]}
28. f4 {[%clk 0:00:38.5]} 28... a5 {[%clk 0:00:48.5]} 29. Kf3 {[%clk 0:00:34.5]}
29... f6 {[%clk 0:00:41]} 30. e3 {[%clk 0:00:34.5]} 30... e5 {[%clk 0:00:36.8]}
31. Rd6 {[%clk 0:00:29.9]} 31... e4+ {[%clk 0:00:36.6]} 32. Ke2 {[%clk
0:00:27.9]} 32... Rxb3 {[%clk 0:00:35.9]} 33. Bxf6 {[%clk 0:00:27.6]} 33... a4
{[%clk 0:00:30.7]} 34. Bc3+ {[%clk 0:00:24.4]} 34... Kf7 {[%clk 0:00:28.7]} 35.
Kd2 {[%clk 0:00:20.8]} 35... a3 {[%clk 0:00:24.8]} 36. bxa3 {[%clk 0:00:20.6]}
36... Rxa3 {[%clk 0:00:25.7]} 37. f5 {[%clk 0:00:19.8]} 37... Ra2+ {[%clk
0:00:25.1]} 38. Kc1 {[%clk 0:00:19.6]} 38... Rg2 {[%clk 0:00:21.5]} 39. Rd7+
{[%clk 0:00:18]} 39... Ke8 {[%clk 0:00:21.8]} 40. Rxb7 {[%clk 0:00:18]} 40...
Rxg3 {[%clk 0:00:22.2]} 41. f6 {[%clk 0:00:18.5]} 41... Rf3 {[%clk 0:00:20.1]}
42. Rc7 {[%clk 0:00:17.4]} 42... Nd8 {[%clk 0:00:16.8]} 43. Re7+ {[%clk
0:00:15.4]} 43... Kf8 {[%clk 0:00:17.3]} 44. Kd2 {[%clk 0:00:15.8]} 44... Nf7
{[%clk 0:00:13.2]} 45. Rxe4 {[%clk 0:00:15.5]} 45... Nd6 {[%clk 0:00:13.5]} 46.
Bb4 {[%clk 0:00:13.7]} 46... Rxf6 {[%clk 0:00:13.2]} 47. Rd4 {[%clk 0:00:14.2]}
47... Ke7 {[%clk 0:00:13.4]} 48. Kd3 {[%clk 0:00:13.9]} 48... Re6 {[%clk
0:00:12.6]} 49. e4 {[%clk 0:00:11.7]} 49... Kd7 {[%clk 0:00:13]} 50. Rxd6+
{[%clk 0:00:07.1]} 50... Rxd6+ {[%clk 0:00:13.9]} 51. Bxd6 {[%clk 0:00:07.8]}
51... Kxd6 {[%clk 0:00:14.7]} 52. Kd4 {[%clk 0:00:08.5]} 52... Ke6 {[%clk
0:00:15.1]} 53. e5 {[%clk 0:00:08.5]} 53... Ke7 {[%clk 0:00:15.6]} 54. Ke4
{[%clk 0:00:09]} 54... Ke6 {[%clk 0:00:15.7]} 55. Kf4 {[%clk 0:00:09.6]} 55...
Ke7 {[%clk 0:00:15.8]} 56. Kf5 {[%clk 0:00:10.1]} 56... Kf7 {[%clk 0:00:15.8]}
57. Kg5 {[%clk 0:00:08.4]} 57... Ke6 {[%clk 0:00:15.3]} 58. Kxh5 {[%clk
0:00:08.9]} 58... Kf5 {[%clk 0:00:14.6]} 59. e6 {[%clk 0:00:08.2]} 59... Kxe6
{[%clk 0:00:15]} 60. Kg6 {[%clk 0:00:08.6]} 60... Ke7 {[%clk 0:00:11]} 61. Kg7
{[%clk 0:00:08.8]} 61... Ke6 {[%clk 0:00:11.6]} 62. h5 {[%clk 0:00:09.3]} 62...
Kf5 {[%clk 0:00:12.5]} 63. h6 {[%clk 0:00:09.9]} 63... Kg5 {[%clk 0:00:13.4]}
64. h7 {[%clk 0:00:10.5]} 64... Kf5 {[%clk 0:00:14.3]} 65. h8=Q {[%clk
0:00:10.8]} 65... Ke6 {[%clk 0:00:15.2]} 66. Qh6+ {[%clk 0:00:11.2]} 66... Kd5
{[%clk 0:00:16.1]} 67. Qf6 {[%clk 0:00:11.4]} 67... Ke4 {[%clk 0:00:16.6]} 68.
Kg6 {[%clk 0:00:11.2]} 68... Kd3 {[%clk 0:00:17.5]} 69. Qe5 {[%clk 0:00:11.3]}
69... Kc4 {[%clk 0:00:18.4]} 70. Qd6 {[%clk 0:00:11]} 70... Kc3 {[%clk
0:00:18.7]} 71. Qd5 {[%clk 0:00:11.4]} 71... Kc2 {[%clk 0:00:19.6]} 72. Qd4
{[%clk 0:00:11.7]} 72... Kb3 {[%clk 0:00:20.5]} 73. Qc5 {[%clk 0:00:11.8]} 73...
Kb2 {[%clk 0:00:20.9]} 74. Qc4 {[%clk 0:00:12.1]} 74... Ka3 {[%clk 0:00:21.8]}
75. Qb5 {[%clk 0:00:12.2]} 75... Ka2 {[%clk 0:00:22.5]} 76. Qb4 {[%clk
0:00:12.5]} 76... Ka1 {[%clk 0:00:23.4]} 77. Kf7 {[%clk 0:00:12.3]} 77... Ka2
{[%clk 0:00:24.3]} 78. Ke6 {[%clk 0:00:12.8]} 78... Ka1 {[%clk 0:00:25.2]} 79.
Kd5 {[%clk 0:00:13.4]} 79... Ka2 {[%clk 0:00:26.1]} 80. Ke4 {[%clk 0:00:14]}
80... Ka1 {[%clk 0:00:27]} 81. Kf3 {[%clk 0:00:14.6]} 81... Ka2 {[%clk
0:00:27.9]} 82. Ke2 {[%clk 0:00:15.4]} 82... Ka1 {[%clk 0:00:28.8]} 83. Kd1
{[%clk 0:00:16.1]} 83... Ka2 {[%clk 0:00:29.7]} 84. Kc2 {[%clk 0:00:16.7]} 84...
Ka1 {[%clk 0:00:30.6]} 85. Qa4# {[%clk 0:00:17]} 1-0